Cogmind - Beta 14 @@@ ROGUE MODE // 2024.08.24 @ 03:41:24 Player: swetpototo Result: Destroyed by B-75 Beast with Heavy Plasma Cannon Performance ------------- Evolutions (2) 1000 Regions Visited (7) 1400 Robots Destroyed (57) 285 Value Destroyed (1189) 1189 Prototype IDs (4) 80 Alien Tech Used (0) 0 Bonus (358) 358 TOTAL SCORE: 4312 Bonus ------- High Alert Combat Kills 44 Follower Combat Kills 151 Entered Garrisons 200 Friendly Fire -37 Cogmind --------- Core Integrity 0/550 Matter 164/300 Energy 314/360 System Corruption 9% Temperature Danger (482) Movement Treading (160) Location -8/Garrison Parts ------- > --- POWER (1) -------- Light Nuclear Core > --- PROPULSION (2) --- Improved Medium Treads Improved Medium Treads > --- UTILITY (6) ------ Compact Battery Microactuators Microactuators > --- WEAPON (2) ------- Magnetic Acceleration Cannon > --- INVENTORY (5) ---- Wheel Wheel Microactuators Rocket Launcher Mini Grenade Launcher Peak State ------------ > --- POWER ------------ Light Nuclear Core > --- PROPULSION ------- Improved Medium Treads Improved Medium Treads > --- UTILITY ---------- Improved Heat Sink Medium Storage Unit Compact Battery Microactuators Microactuators > --- WEAPON ----------- Magnetic Acceleration Cannon > --- INVENTORY -------- Wheel Wheel Compact Wheel Improved Heat Sink Microactuators Particle Gun Light Assault Rifle Rocket Launcher Mini Grenade Launcher Datajack [Rating: 34] Favorites ----------- Power Light Nuclear Core Engine Light Ion Engine Power Core Light Nuclear Core Propulsion Wheel Treads Light Treads Wheel Wheel Utility Medium Storage Unit Device Microactuators Storage Medium Storage Unit Processor Targeting Computer Protection Light Armor Plating Weapon Improved EM Shotgun Energy Gun Improved EM Shotgun Energy Cannon Advanced Beam Cannon Ballistic Gun Light Assault Rifle Ballistic Cannon Improved Light Cannon Launcher Advanced EMP Blaster Special Weapon Mining Laser Slashing Weapon Katana Build | -11 -10 -10 -9 -9 -8 -8 -8 ------- Run | Yrd Mat Min Mat Min Mat Sto Gar Slots Evolved 4 | . . . 2 . 2 . . Power . | . . . . . . . . Propulsion . | . . . . . . . . Utility 4 | . . . 2 . 2 . . Weapon . | . . . . . . . . Parts Attached 78 | 7 7 6 18 . 7 6 27 Power 12 | 1 1 1 2 . 1 . 6 Engine 7 | 1 1 1 2 . . . 2 Core 5 | . . . . . 1 . 4 Reactor . | . . . . . . . . Propulsion 14 | 2 . 2 3 . 1 . 6 Treads 5 | . . . . . . . 5 Leg . | . . . . . . . . Wheel 9 | 2 . 2 3 . 1 . 1 Hover . | . . . . . . . . Flight . | . . . . . . . . Utility 21 | 1 3 . 6 . 2 . 9 Device 9 | . 2 . 2 . 1 . 4 Storage 5 | 1 1 . . . . . 3 Processor 1 | . . . . . 1 . . Hackware . | . . . . . . . . Protection 6 | . . . 4 . . . 2 Artifact . | . . . . . . . . Weapon 31 | 3 3 3 7 . 3 6 6 Energy Gun 12 | 2 1 . 3 . 2 2 2 Energy Cannon 1 | . . . 1 . . . . Ballistic Gun 12 | 1 1 3 3 . . 2 2 Ballistic Cannon 3 | . . . . . . 2 1 Launcher 1 | . . . . . 1 . . Special Weapon 1 | . 1 . . . . . . Impact Weapon . | . . . . . . . . Slashing Weapon 1 | . . . . . . . 1 Piercing Weapon . | . . . . . . . . Special Melee Weapon . | . . . . . . . . Unidentified Prototypes 4 | . . . 3 . 1 . . Corrupted Parts 1 | . . 1 . . . . . System Corruption 1 | . . 1 . . . . . Parts Lost 37 | . 5 5 4 . 2 3 18 Power 8 | . 2 1 1 . . 1 3 Propulsion 7 | . 1 2 1 . . . 3 Utility 12 | . . 1 . . 2 . 9 Weapon 10 | . 2 1 2 . . 2 3 Highest Loss Streak 4 | . 4 3 4 . 2 3 4 To Critical Strikes . | . . . . . . . . Average Slot Usage (%) 80 | . 90 73 82 100 89 75 77 Engine 5 | . 12 3 8 11 7 . 3 Core 3 | . . . . . 1 7 4 Treads 6 | . . . . . . . 12 Wheel 11 | . 26 23 15 22 18 18 4 Device 12 | . 12 14 8 . 7 9 16 Storage 13 | . 14 14 11 11 9 9 16 Protection 7 | . . . 16 33 26 9 1 Energy Gun 8 | . 22 . 8 22 17 11 4 Ballistic Gun 4 | . 1 9 11 . . 1 2 Ballistic Cannon 2 | . . . . . . 1 4 Slashing Weapon 2 | . . . . . . . 5 Peak Build Rating 34 | 6 7 7 15 15 19 17 34 Average Rating 15 | 4 6 5 10 15 16 14 20 On Entrance 9 | . 6 4 4 15 15 17 12 Naked Turns . | . . . . . . . . Heaviest Build 35 | 12 20 16 30 30 33 27 35 Greatest Support 60 | 20 20 26 20 20 20 20 60 Greatest Overweight (x) 6 | . 1 1 6 1 1 1 2 Average Overweight (x) . | . . . . 1 1 . . Largest Inventory Capacity 10 | 8 10 10 10 10 10 10 10 Average Capacity 9 | 6 9 10 10 10 10 10 9 Most Carried 10 | 2 5 7 10 10 10 10 10 Average Carried 8 | 1 3 5 6 10 9 9 9 Final Capacity 10 | 8 10 10 10 10 10 10 5 Final Carried 10 | 2 4 4 10 10 10 10 5 Class Distribution -------------------- 54% | Scavenger-Mutant 32% | Mutant 13% | Commander-Mutant Dominant Class ---------------- Mutant | -10/Materials Mutant | -10/Mines Scavenger-Mutant | -9/Materials Scavenger-Mutant | -9/Mines Scavenger-Mutant | -8/Materials Scavenger-Mutant | -8/Storage Scavenger-Mutant | -8/Garrison Resources | -11 -10 -10 -9 -9 -8 -8 -8 ----------- Run | Yrd Mat Min Mat Min Mat Sto Gar Matter Collected 1368 | 206 119 65 265 . 60 20 633 Remotely . | . . . . . . . . Salvage Created 1734 | . 202 111 740 . 142 110 429 Parts 112 | . 4 9 47 . 14 8 30 Haulers Intercepted 3 | . . . 3 . . . . Recyclers Shooed 1 | . . . 1 . . . . Parts Field Recycled . | . . . . . . . . Retrieved Matter . | . . . . . . . . Parts Self-Destructed . | . . . . . . . . Prevented . | . . . . . . . . Kills | -11 -10 -10 -9 -9 -8 -8 -8 ------- Run | Yrd Mat Min Mat Min Mat Sto Gar Combat Hostiles Destroyed 43 | . 5 3 10 . 3 4 18 Guns 32 | . 5 3 9 . 3 3 9 Cannons 10 | . . . 1 . . . 9 Classes Destroyed 10 | . 2 2 3 . 2 . 1 Worker 6 | . 1 . 4 . 1 . . Builder 1 | . . . . . 1 . . Hauler 3 | . . . 3 . . . . Recycler 3 | . . 1 2 . . . . Mechanic 1 | . . . 1 . . . . Swarmer 21 | . . 3 3 . 2 3 10 Grunt 13 | . 5 . 5 . . . 3 Brawler 2 | . . . . . . . 2 Sentry 5 | . . . 2 . . 1 2 Hunter 2 | . . . . . 1 . 1 Best Kill Streak 8 | . 4 4 7 . 5 3 8 Combat Bots Only 8 | . 3 3 4 . 3 3 8 Max Kills in Single Turn 2 | . 1 1 1 . 1 2 1 Gunslinging 1 | . . . . . . 1 . Exploded . | . . . . . . . . Melee . | . . . . . . . . Uniques/NPCs Destroyed . | . . . . . . . . Combat | -11 -10 -10 -9 -9 -8 -8 -8 -------- Run | Yrd Mat Min Mat Min Mat Sto Gar Hostile Shots Fired 379 | . 51 36 65 . 14 49 164 Missed 92 | . 11 6 24 . 2 14 35 Damage Taken 4040 | . 535 305 495 . 237 529 1939 Core 912 | . 137 86 138 . 45 134 372 Absorbed by Shields 10 | . . . . . . . 10 Regen/Repaired (Parts) 48 | . . . . . 12 36 . Core Remaining (%) 58 | 100 . 10 . 65 . . . Volleys Fired 192 | . 30 9 56 . 7 11 79 Largest 2 | . 2 2 2 . 2 2 2 Hottest 100 | . 100 100 91 . 90 90 78 Shots Fired 340 | . 50 10 110 . 14 19 137 Gun 245 | . 50 5 91 . 14 19 66 Cannon 90 | . . . 19 . . . 71 Launcher . | . . . . . . . . Special 5 | . . 5 . . . . . Kinetic 197 | . 3 5 65 . . . 124 Thermal 98 | . 47 5 33 . . . 13 Explosive . | . . . . . . . . Electromagnetic 45 | . . . 12 . 14 19 . Robot Hit Streak 22 | . 22 4 14 . 12 17 8 Robot Miss Streak 6 | . 4 6 4 . 1 3 6 Penetration Max 1 | . . . . . . . 1 Secondary Targets 3 | . 1 . . . . 2 . Max Gunslinging Chain 1 | . 1 . . . . 1 . Shots Hit Robots 214 | . 39 4 75 . 10 17 69 Core Hits 94 | . 13 5 35 . 7 6 28 Critical Kills 1 | . . . . . . . 1 Critical Parts Destroyed . | . . . . . . . . Critical Strikes 5 | . . . 1 . . . 4 Burn 1 | . . . 1 . . . . Destroy 1 | . . . . . . . 1 Blast 3 | . . . . . . . 3 Melee Attacks 5 | . . . . . . . 5 Impact . | . . . . . . . . Slashing 5 | . . . . . . . 5 Piercing . | . . . . . . . . Sneak Attacks . | . . . . . . . . Combat Hostiles . | . . . . . . . . Follow-up Attacks . | . . . . . . . . Damage Inflicted 3385 | . 504 64 967 . 242 274 1334 Guns 2341 | . 504 45 823 . 167 274 528 Cannons 950 | . . . 144 . . . 806 Explosions 75 | . . . . . 75 . . Melee . | . . . . . . . . Ramming 19 | . . 19 . . . . . Kinetic 1808 | . 26 45 475 . . . 1262 Thermal 915 | . 478 . 290 . 75 . 72 Explosive . | . . . . . . . . Electromagnetic 643 | . . . 202 . 167 274 . Impact . | . . . . . . . . Slashing . | . . . . . . . . Piercing . | . . . . . . . . Highest Corruption 9 | . . 1 . . . 1 9 Average Corruption 6 | . . 1 . . . 1 6 Corruption Purged . | . . . . . . . . Corruption Blocked . | . . . . . . . . Effects 45 | . . 1 . . . 2 42 Message Errors 9 | . . 1 . . . 1 7 Matter Fused 14 | . . . . . . . 14 Heat Flow Errors 3 | . . . . . . . 3 Energy Discharges 3 | . . . . . . . 3 Parts Rejected 1 | . . . . . . . 1 Data Loss (minor) 7 | . . . . . . . 7 Data Loss (major) 2 | . . . . . . 1 1 Alerts 5 | . . . . . . . 5 Weapon Failures 1 | . . . . . . . 1 Overload Shots . | . . . . . . . . Overflow Damage 1 | . . . . . . . 1 Projectiles 1 | . . . . . . . 1 Explosions . | . . . . . . . . Melee . | . . . . . . . . Knockbacks 6 | . . . . . . . 6 Impact . | . . . . . . . . Kinetic 6 | . . . . . . . 6 Secondary . | . . . . . . . . Self-Inflicted Damage 54 | . . 9 . . 45 . . Shots 1 | . . . . . 1 . . Rammed 2 | . . 2 . . . . . Targets Rammed 2 | . . 2 . . . . . Kicked . | . . . . . . . . Crushed . | . . . . . . . . Highest Temperature 490 | . 228 . 240 . 42 50 490 Average Temperature 108 | . 94 . 87 . 20 28 177 Received Heat Transfer 1893 | . 303 27 171 . 18 171 1203 Effects 6 | . 3 . . . . . 3 Shutdowns 3 | . . . . . . . 3 Interference 3 | . 3 . . . . . . Siege Activations . | . . . . . . . . Robots Corrupted 1 | . . . . . . 1 . Combat Hostiles 1 | . . . . . . 1 . Parts Fried 4 | . . . . . . 4 . Impact Corruptions . | . . . . . . . . Robots Melted . | . . . . . . . . Combat Hostiles . | . . . . . . . . Parts Melted 4 | . 4 . . . . . . Heat Transferred 2335 | . 1406 . 703 . 100 . 126 Parts Sabotaged . | . . . . . . . . Parts Stolen . | . . . . . . . . Parts Stripped . | . . . . . . . . Power Chain Reactions 1 | . . . . . 1 . . Alert | -11 -10 -10 -9 -9 -8 -8 -8 ------- Run | Yrd Mat Min Mat Min Mat Sto Gar Peak Influence 693 | . 110 136 321 65 245 189 693 Initial 105 | . . 27 44 65 25 103 105 Average 288 | . 46 57 147 65 64 131 480 Maximum Alert Level 2 | . . . 1 . 1 . 2 Low Security (%) 49 | 100 100 100 80 100 89 100 6 Level 1 18 | . . . 19 . 10 . 29 Level 2 32 | . . . . . . . 64 Level 3 . | . . . . . . . . Level 4 . | . . . . . . . . Level 5 . | . . . . . . . . High Security . | . . . . . . . . Max Security . | . . . . . . . . Squads Dispatched 2 | . 1 . . . . 1 . Investigation 1 | . 1 . . . . . . Extermination . | . . . . . . . . Reinforcement . | . . . . . . . . Assault . | . . . . . . . . Garrison 1 | . . . . . . 1 . Intercept . | . . . . . . . . Searches Triggered . | . . . . . . . . Construction Impeded . | . . . . . . . . Haulers Reinforced . | . . . . . . . . Active Scanning Responses . | . . . . . . . . Cargo Convoy Interrupts . | . . . . . . . . Stealth | -11 -10 -10 -9 -9 -8 -8 -8 --------- Run | Yrd Mat Min Mat Min Mat Sto Gar Distress Signals 1 | . . . . . 1 . . Communications Jammed . | . . . . . . . . Distress Signals . | . . . . . . . . Times Spotted 72 | . 8 8 19 . 8 6 23 Peak Tracking Total 5 | . 4 5 5 . 5 4 5 Tactical Retreats 3 | . . . 1 . . . 2 Traps | -11 -10 -10 -9 -9 -8 -8 -8 ------- Run | Yrd Mat Min Mat Min Mat Sto Gar Traps Triggered 6 | . . . . . . 2 4 Indirectly . | . . . . . . . . Trap Hack Attempts . | . . . . . . . . Triggered . | . . . . . . . . Disarmed . | . . . . . . . . Reprogrammed . | . . . . . . . . Reused 4 | . . 4 . . . . . Traps Extracted . | . . . . . . . . Installed 4 | . . 4 . . . . . Triggered 4 | . . 4 . . . . . Most Traps Carried 4 | . . 4 . . . . . Machines | -11 -10 -10 -9 -9 -8 -8 -8 ---------- Run | Yrd Mat Min Mat Min Mat Sto Gar Machines Disabled 4 | . . . 1 . 2 . 1 Max in Single Turn 1 | . . . 1 . 1 . 1 Machines Repaired . | . . . . . . . . Machines Dismantled . | . . . . . . . . Machines Sabotaged . | . . . . . . . . Overloaded Fab Kills . | . . . . . . . . Hacking | -11 -10 -10 -9 -9 -8 -8 -8 --------- Run | Yrd Mat Min Mat Min Mat Sto Gar Machines Accessed 13 | . 2 1 3 . 3 2 2 Terminals 10 | . 2 1 3 . 2 . 2 Fabricators . | . . . . . . . . Repair Stations 2 | . . . . . 1 1 . Recycling Units . | . . . . . . . . Scanalyzers . | . . . . . . . . Garrison Access 1 | . . . . . . 1 . Total Hacks 35 | . 3 3 5 . 8 11 5 Successful 16 | . 1 1 3 . 5 5 1 Failed 19 | . 2 2 2 . 3 6 4 Catastrophic 2 | . 1 . . . . . 1 Database Lockouts . | . . . . . . . . Manual 13 | . 3 . 4 . 6 . . Terminals 22 | . 3 3 5 . 6 . 5 Fabricators . | . . . . . . . . Repair Stations 10 | . . . . . 2 8 . Recycling Units . | . . . . . . . . Scanalyzers . | . . . . . . . . Garrison Access 3 | . . . . . . 3 . Terminal Hacks 5 | . . 1 1 . 2 . 1 Part Schematic 1 | . . . . . 1 . . Branch Access Points 1 | . . . 1 . . . . Emergency Access Points 1 | . . . . . . . 1 Fabricator Index 1 | . . . . . 1 . . Zone Layout 1 | . . 1 . . . . . Fabricator Hacks . | . . . . . . . . Repair Station Hacks 6 | . . . . . 2 4 . Scan Component 4 | . . . . . 1 3 . Repair 2 | . . . . . 1 1 . Recycling Unit Hacks . | . . . . . . . . Scanalyzer . | . . . . . . . . Garrison Access Hacks 1 | . . . . . . 1 . Unlock Access 1 | . . . . . . 1 . Unauthorized Hacks 4 | . 1 . 2 . 1 . . Terminals 4 | . 1 . 2 . 1 . . Botnet 4 | . 1 . 2 . 1 . . Fabricators . | . . . . . . . . Repair Stations . | . . . . . . . . Recycling Units . | . . . . . . . . Scanalyzers . | . . . . . . . . Garrison Access . | . . . . . . . . Data Cores Recovered 1 | . . . . . 1 . . Used . | . . . . . . . . Hacking Detections 10 | . 1 1 3 . 2 2 1 Full Trace Events 4 | . 1 1 . . . 1 1 Feedback Events . | . . . . . . . . Feedback Blocked . | . . . . . . . . Robot Schematics Acquired . | . . . . . . . . Robots Built . | . . . . . . . . Authchips . | . . . . . . . . Time . | . . . . . . . . Total Robot Build Rating . | . . . . . . . . Part Schematics Acquired 1 | . . . . . 1 . . Parts Built . | . . . . . . . . Authchips . | . . . . . . . . Time . | . . . . . . . . Total Part Build Rating . | . . . . . . . . Parts Repaired 2 | . . . . . 1 1 . Time 115 | . . . . . 64 51 . Parts Recycled . | . . . . . . . . Recycled Matter . | . . . . . . . . Retrieved Matter . | . . . . . . . . Retrieved Components . | . . . . . . . . Parts Scanalyzed . | . . . . . . . . Part Schematics Acquired . | . . . . . . . . Parts Damaged . | . . . . . . . . Bothacking | -11 -10 -10 -9 -9 -8 -8 -8 ------------ Run | Yrd Mat Min Mat Min Mat Sto Gar Used RIF Installer . | . . . . . . . . Robots Hacked . | . . . . . . . . Non-combat . | . . . . . . . . Combat . | . . . . . . . . Robot Hacks Applied . | . . . . . . . . Relay Couplers Released . | . . . . . . . . Fabnet Peak Effective % . | . . . . . . . . Robots Rewired 8 | . . . . . . . 8 Allies Hacked . | . . . . . . . . Hacks Repelled . | . . . . . . . . Allies | -11 -10 -10 -9 -9 -8 -8 -8 -------- Run | Yrd Mat Min Mat Min Mat Sto Gar Total Allies 11 | . . . . 3 . . 8 Largest Group 8 | . . . . 3 3 2 8 Highest-Rated Group 168 | . . . . 40 40 32 168 Highest-Rated Ally 39 | . . . . 16 16 16 39 Total Orders . | . . . . . . . . Ally Attacks 62 | . . . . . 14 1 47 Total Damage 876 | . . . . . 113 18 745 Kills 6 | . . . . . 3 . 3 Allies Corrupted . | . . . . . . . . Allies Melted 1 | . . . . . . . 1 Intel | -11 -10 -10 -9 -9 -8 -8 -8 ------- Run | Yrd Mat Min Mat Min Mat Sto Gar Robot Analysis Total . | . . . . . . . . Derelict Logs Recovered . | . . . . . . . . Drone Launches . | . . . . . . . . Drone Recoveries . | . . . . . . . . Exploration | -11 -10 -10 -9 -9 -8 -8 -8 ------------- Run | Yrd Mat Min Mat Min Mat Sto Gar Turns Passed 3143 | 47 209 282 531 81 246 172 1575 Spaces Moved 1909 | 45 118 267 301 86 147 85 860 Core 12 | 3 . . 9 . . . . Treads 535 | . . . . . . . 535 Legs . | . . . . . . . . Wheels 1362 | 42 118 267 292 86 147 85 325 Hover . | . . . . . . . . Flight . | . . . . . . . . Fastest Speed 50 | 50 80 80 95 95 95 80 80 Average Speed 113 | 78 83 86 104 95 95 92 139 Slowest Speed 350 | 80 95 100 350 95 95 95 240 Overloaded Moves . | . . . . . . . . Propulsion Burnouts . | . . . . . . . . Robots Hopped . | . . . . . . . . Cave-ins Triggered . | . . . . . . . . Exploration Rate (%) 28 | 3 22 69 30 21 16 9 58 Regions Visited 7 Branch Regions 3 Pre-discovered Areas 1 | . . . . 1 . . . Known Exits Taken 2 | . . . 1 . . 1 . Unknown Exits Taken 5 | 1 1 1 . 1 1 . . Scrap Searched 2 | . . 1 . 1 . . . Spaces Dug . | . . . . . . . . Terrain Destroyed 9 | . . 4 . . 4 . 1 Melee . | . . . . . . . . Projectile 5 | . . 4 . . . . 1 AOE 4 | . . . . . 4 . . Terrain Rammed . | . . . . . . . . Walls Destroyed . | . . . . . . . . Machines Disabled . | . . . . . . . . Actions | -11 -10 -10 -9 -9 -8 -8 -8 --------- Run | Yrd Mat Min Mat Min Mat Sto Gar Total 2527 | 53 177 299 419 85 239 158 1097 Wait 162 | . 17 1 14 . 71 51 8 Move 1899 | 44 117 266 300 85 146 84 857 Hop . | . . . . . . . . Pick Up 37 | 1 3 7 15 . 3 2 6 Fast Attach 50 | 7 3 2 12 . 3 5 18 Attach 16 | . 2 3 4 . 1 . 6 Detach 8 | 1 2 . 3 . . . 2 Swap 12 | . 2 1 2 . 3 1 3 Drop 35 | . 1 4 13 . 5 4 8 Fire 192 | . 30 9 56 . 7 11 79 Melee 5 | . . . . . . . 5 Ram 2 | . . 2 . . . . . Kick . | . . . . . . . . Crush . | . . . . . . . . Escape Stasis 24 | . . . . . . . 24 Rewire 81 | . . . . . . . 81 Trap 4 | . . 4 . . . . . Miscellaneous . | . . . . . . . . Route ------- -11/Scrapyard -10/Materials -10/Mines -9/Materials -9/Mines -8/Materials -8/Storage -8/Garrison (discovered 1 exit: [*Fac]) History --------- Turn | Location | Event 12 | -11/Scrapyard | Discovered new exit (range 16) 48 | -11/Scrapyard | Entered Materials 190 | -10/Materials | Discovered new exit (range 13) 248 | -10/Materials | Core integrity fell below 50% 257 | -10/Materials | Entered Mines 263 | -10/Mines | Lost 4 parts (1p1n2w) 325 | -10/Mines | Build established: Mutant 349 | -10/Mines | Found a hidden stash of uninstalled traps 517 | -10/Mines | Discovered new exit (range 11) 536 | -10/Mines | Core integrity fell below 20% 539 | -10/Mines | Entered Materials 539 | -9/Materials | Evolved 2 slots: Utility x2 568 | -9/Materials | Lost 3 parts (1p1n1u) 729 | -9/Materials | Lost 4 parts (1p1n2w) 1038 | -9/Materials | Build established: Scavenger-Mutant 1054 | -9/Materials | Identified exit to Mines 1070 | -9/Materials | Entered Mines 1108 | -9/Mines | Assisted by bots powering up and referring to "LRC-V3" 1140 | -9/Mines | Discovered new exit (range 5) 1141 | -9/Mines | Learned location of Storage (-8) 1151 | -9/Mines | Entered Materials 1151 | -8/Materials | Accompanied by 3 allies 1151 | -8/Materials | Evolved 2 slots: Utility x2 1249 | -8/Materials | Repaired Broken Imp. EM Shotgun 1386 | -8/Materials | Discovered new exit (range 7) 1397 | -8/Materials | Entered Storage 1397 | -8/Storage | Accompanied by 2 allies 1467 | -8/Storage | Repaired Imp. EM Shotgun 1516 | -8/Storage | Garrison activated, responded to threat 1540 | -8/Storage | Identified exit to Garrison 1567 | -8/Storage | Lost 3 parts (1p2w) 1569 | -8/Storage | Entered Garrison 1718 | -8/Garrison | Destroyed 8 combat bots 1803 | -8/Garrison | Triggered checkpoint 1977 | -8/Garrison | Triggered checkpoint 1987 | -8/Garrison | Triggered checkpoint 1992 | -8/Garrison | Discovered new exit (range 10) 2052 | -8/Garrison | Lost 3 parts (1p2u) 2159 | -8/Garrison | Core integrity fell below 50% 2191 | -8/Garrison | Lost 4 parts (2u2w) 2900 | -8/Garrison | Attempted to access garrison exit controls, blocked by remote lockdown 2937 | -8/Garrison | Build established: Commander-Mutant 3041 | -8/Garrison | Spotted B-75 Beast 3041 | -8/Garrison | Spotted B-75 Beast 3077 | -8/Garrison | Lost 3 parts (1p2n) 3114 | -8/Garrison | Core integrity fell below 20% 3124 | -8/Garrison | Lost 7 allies 3144 | -8/Garrison | Destroyed by B-75 Beast with Heavy Plasma Cannon Last Messages --------------- 03061_ Destroyed Imp. Medium Treads. 03062_ Imp 3c system corrupted by crushing effect. 03062_ B-75 Beast suffers critical hit (Destroy). 03087_ System corrupted: Component data lost. 03113_ LRK P#P22FW8UVBOUUND,NNHX01KM 03114_ Acquired 4 matter. 03119_ Acquired Imp. Medium Treads. 03124_ Dropped Lgt. Treads. 03125_ Acquired Imp. Medium Treads. 03125_ Katana destroyed. 03125_ Critical hit (Meltdown: +310). 03128_ Lgt. Nuclear Core destroyed. 03128_ Acquired Lgt. Nuclear Core. 03129_ System corrupted: Heat flow error (+154). 03131_ Acquired Magnetic Acceleration Cannon. 03133_ Med. Storage Unit destroyed. 03138_ Critical hit (Meltdown: +320). 03141_ Imp. Heat Sink destroyed. 03142_ Power failure, Lgt. Nuclear Core shutdown. 03142_ B-75 Beast Imp. Cooling System blasted off. Map ----- +----------------------------------------------------+ | ??????????????????????????????# #??????????????? | | ??????????????????????????????# #??????????????? | | ??????????????????????????????# #??????????????? | | ??????????????????????????????# #??????????????? | | ??????????????????????????????# #??????????????? | | ??????????????????????????????# #??????????????? | | ??????????????????????????????# #??????????????? | | ??????????????????????????????# #??????????????? | | ??????????????????????????????# +??????????????? | | ??????????????????????????????# +??????????????? | | ???????????????????############ #??????????????? | | ???????????????????""""""""""## #??????????????? | | ??????????????????#"""!!!!!!"## #??????????????? | | ??????????????????#"" ## #??????????????? | | ??????????????????#"! ## [[#???????????#### | | ??????????????????#"! ## =#???????????# | | ??????????????????#"! ##= *###+#####++## | | ??????????????????#"! *[^ * [ | | ??????????????????#"" = [== | | ??????????????????#"""!!!!!! ##% ] =^ [ | | ???????????????????"""""""" "########"#### ##= | | ???????????????????###########??????# #### ## = | | ????????????????????????????????????# + % | | ????????????????????????????????????#### | | ????????????????????##########?????????# | | ????????????????????# /=@[*!#?????????# | | ????????????????????# !!%%!#?????????### ## | | ????????????????????# =]!]%############# ## | | ???????????" ##### %!%BB%!%%= [ | | ????????????" ; % !BB*=/= % | | ???????????" #####]]] !!!#####* ####### | | ????????????????????####;####???# #?????# ## | | ???????????????????????# #??????# #?????# ## | | ???????????????????????# #??????# #?????# #?+## | | ???????????????????????# #??????# #?????# #???? | | ???????????????????????# #??????# +?????+ +???? | | ???????????????????????# #??????# #?????# #???? | | ???????????????????????# #??????# #?????# #???? | | ?????????##+############"######## ####### #???? | | ?????????# #???? | | ?????????# = #???? | | ?????????# #???? | | ?????????# < ############# ##### ####+#### #???? | | ?????????# #?????????### #???# ###?????# #???? | | ?????????##+############ #???# #?????# #???? | | ??????????# [! =[="[ +???+ +?????# #???? | | ??????????######### #### #???# #?????# #???? | | ??????????????????#[#??### #???# ###?????# #???? | | ????????????####??#=#????# #???# #???????# #???? | | ????????##### ##?# #????# #???# #???????# #???? | +----------------------------------------------------+ Best States ------------- Heat Dissipation 45 Energy Generation 14 Energy Capacity 850 Matter Stores 300 Matter Capacity 300 Sight Range 16 Terrain Scan Range 14 Terrain Scan Density 10 Armor Coverage 450 Melee Speed Boost 50 Evasion (%) 44 Targeting Accuracy 5 Recoil Reduction 2 Item Schematics ----------------- Cargo Storage Unit | -8/Materials | Hacked Robot Schematics ------------------ None Fabricated ------------ Nothing Alien Tech Used ----------------- None Achievements -------------- None Challenges ------------ None Game ------ Seed LinkedResetDiverter Manual? 0 Play Time 00:36:13 Cumulative 56.2 hours Start 2024.08.24 @ 00:23:19 End 2024.08.24 @ 03:41:24 Sessions 3 Manual Loads 0 Difficulty Rogue Special Mode None Game No. 69 Rogue 24 Adventurer 44 Explorer 1 Win Type - Total 2 Types 1/0/1/0/0/0/0/0/0 Lore% 12 Gallery% 47 Achievement% 37 Wizard Run 0 Options --------- Layout 0 ASCII 0 Keyboard 1 Movement Arrows Keybinds 0 Fullscreen 1 Font 18/SmallcapsGlow Map View 76x50 Zoom Use 0% Tactical HUD 1 Map Filters NONE Filters NONE Steam 1 RUN: 6f53155e-e758-4dfd-978e-cc8cfe333995